[Event "4th ESNA Championship 2022"]
[Site "Vaduz"]
[Date "2022.09.29"]
[Round "7.3"]
[White "Michaelides, Konstantinos"]
[Black "Henderson de La Fuente, Lance"]
[Result "0-1"]
[ECO "E05"]
[WhiteElo "2304"]
[BlackElo "2504"]
[Annotator "TA"]
[PlyCount "124"]
[EventDate "2022.09.25"]
[EventType "tourn"]
[EventCountry "LIE"]
[SourceTitle "playchess.com"]
[Source "ChessBase"]
[SourceQuality "1"]
[TimeControl "40/5400+30:1800+30"]

{[%evp 22,124,12,12,27,26,34,27,34,27,35,27,34,10,9,0,0,0,0,0,0,0,0,0,0,0,0,0,0,0,0,0,0,0,0,0,0,0,0,0,0,0,0,0,0,0,0,-89,0,-33,0,-33,-28,-32,-39,-35,0,0,0,0,0,0,0,0,0,0,0,0,-8,-6,0,-50,-52,-52,-61,-64,0,0,0,0,-12,-12837,-12837,-12837,-12838,-12838,-12839,-12839,-12839,-12841,-12827,-12844,-12844,-12845,-12845,-12845,-12846,-12847,-12847,-29990,-29991,-29991,-29992,-29992,-29993]} 1. d4 {[%emt 0:00:09]} Nf6 {[%emt 0:00:31]} 2. c4 {[%emt 0:00:24]} e6 {[%emt 0:00:26]} 3. g3 {[%emt 0:00:09]} d5 {[%emt 0:00:39]} 4. Bg2 {[%emt 0:00:37]} Be7 {[%emt 0:00:49]} 5. Nf3 {[%emt 0:00:27]} O-O {[%emt 0:00:08]} 6. O-O {[%emt 0:00:26]} dxc4 {[%emt 0:00:31]} 7. Qc2 {[%emt 0:00:19]} a6 {[%emt 0:00:15]} 8. a4 {[%emt 0:00:06]} Bd7 {[%emt 0:00:09]} 9. Qxc4 {[%emt 0:00:16]} Bc6 {[%emt 0:00:13]} 10. Bg5 {[%emt 0:00:27]} Bd5 {[%emt 0:00:31]} 11. Qc2 {[%emt 0:01:59]} Be4 {[%emt 0:03:15]} 12. Qc1 {[%emt 0:00:16]} a5 {[%emt 0:02:23] E05: Open Catalan: 5 Nf3 Be7.} 13. Nc3 {[%emt 0:01:10]} Bxf3 {[%emt 0:02:27]} 14. Bxf3 {[%emt 0:00:03]} c6 {[%emt 0:00:08] White has an edge.} 15. Rd1 {[%emt 0:01:48] [#]} Nd5 $146 {[%emt 0:02:48]} ({Predecessor:} 15... Na6 16. e4 Nb4 17. Kg2 Re8 18. h4 Rc8 19. e5 Nfd5 20. Ne4 Rc7 21. Qd2 Qa8 {1-0 (48) Bortnyk,M (2462)-Grinev,V (2414) Omelnyk 2018}) 16. Bxe7 {[%emt 0:06:54]} Qxe7 {[%emt 0:06:18]} 17. e4 {[%emt 0:05:33]} Nb4 {[%emt 0:00:21]} 18. Qd2 {[%emt 0:10:30]} Rd8 {[%emt 0:02:36]} 19. Qe2 {[%emt 0:07:08]} e5 {[%emt 0:03:09]} 20. dxe5 {[%emt 0:02:44]} Nd7 {[%emt 0:00:36]} 21. e6 {[%emt 0:03:42]} Qxe6 {[%emt 0:07:22]} 22. Bg4 {[%emt 0:02:13]} Qe7 {[%emt 0:00:11]} 23. Bxd7 {[%emt 0:04:27]} Rxd7 {[%emt 0:00:06]} 24. Rxd7 {[%emt 0:00:06]} Qxd7 {[%emt 0:00:04]} 25. Rd1 {[%emt 0:00:08]} Qe7 {[%emt 0:01:23]} 26. Qd2 {[%emt 0:08:39]} Na6 {[%emt 0:09:14][%cal Bb4a6,Ba6c5,Bc5e6][%mdl 32]} 27. Qd4 {[%emt 0:07:34]} Nc5 {[%emt 0:07:40]} 28. e5 {[%emt 0:12:31]} Ne6 {[%emt 0:01:13]} 29. Qd6 {[%emt 0:05:28]} Qxd6 {[%emt 0:04:43]} 30. Rxd6 $11 {[%emt 0:00:32][%mdl 4096] Endgame KRN-KRN} Nc5 {[%emt 0:10:24] Against Ne4} 31. f4 {[%emt 0:02:38]} g6 {[%emt 0:01:13]} 32. Kf2 {[%emt 0:03:31]} Ra6 {[%emt 0:00:56]} 33. Ke3 {[%emt 0:07:20]} Rb6 {[%emt 0:00:26]} 34. Rd2 {[%emt 0:01:07]} (34. Rd8+ $11 Kg7 35. Ra8) 34... Rb4 {[%emt 0:00:47]} (34... Kg7 $17) 35. Rd8+ $1 {[%emt 0:03:05]} Kg7 {[%emt 0:00:08]} 36. Ra8 {[%emt 0:01:00]} Nxa4 {[%emt 0:05:06]} 37. Rxa5 {[%emt 0:01:26]} Nxb2 {[%emt 0:00:40] [#] And now ...Nc4+ would win.} 38. Ra7 {[%emt 0:01:28]} g5 {[%emt 0:08:32]} 39. Ne4 $1 {[%emt 0:00:57]} gxf4+ {[%emt 0:00:17]} 40. gxf4 {[%emt 0:00:32]} Rb3+ {[%emt 0:01:03]} 41. Kd4 {[%emt 0:08:19]} Rb4+ {[%emt 0:15:22]} 42. Ke3 {[%emt 0:02:07]} Rb3+ {[%emt 0:08:10]} 43. Kd4 {[%emt 0:01:24]} Rd3+ {[%emt 0:00:39]} 44. Kc5 {[%emt 0:00:02]} Rd5+ {[%emt 0:04:07]} 45. Kb6 {[%emt 0:02:06] Threatens to win with Nd6.} Rd4 {[%emt 0:02:15]} 46. Nf6 {[%emt 0:10:46]} (46. Ng3 $11 Rb4+ 47. Kc7) 46... Rb4+ $15 {[%emt 0:02:09]} (46... Rxf4 $2 47. Nh5+ Kh6 48. Nxf4 $18) 47. Kc7 {[%emt 0:00:20]} Kg6 $1 {[%emt 0:01:01]} (47... Rxf4 $2 48. Nh5+ Kg6 49. Nxf4+ $18) 48. Rxb7 {[%emt 0:04:31]} Rxb7+ {[%emt 0:00:35]} (48... c5 $1 $15 49. Rb6 Rxb6 50. Kxb6 c4) 49. Kxb7 {[%emt 0:00:02] KN-KN} c5 {[%emt 0:00:01] aiming for ...Kf5.} 50. Ne4 {[%emt 0:02:40]} c4 {[%emt 0:00:54] White must now prevent ...Kf5.} 51. Nd6 {[%emt 0:01:24][%mdl 8192] White does not recover from this.} (51. Kc6 $11) 51... c3 $19 {[%emt 0:01:39]} 52. f5+ {[%emt 0:00:56] [#]} Kg7 $1 {[%emt 0:00:33]} 53. e6 {[%emt 0:01:39]} fxe6 {[%emt 0:00:56]} 54. fxe6 {[%emt 0:00:01]} Kf8 {[%emt 0:00:35]} 55. Kc6 {[%emt 0:00:58]} Ke7 {[%emt 0:00:21]} ({Weaker is} 55... c2 56. Kd7 c1=Q 57. e7+ Kg7 58. e8=Q $14) 56. Kd5 {[%emt 0:00:05]} c2 {[%emt 0:00:23]} 57. Nf5+ {[%emt 0:00:45]} Ke8 {[%emt 0:01:31]} 58. Ng7+ {[%emt 0:00:44]} Kd8 {[%emt 0:00:38]} 59. Ke5 {[%emt 0:00:49]} c1=Q {[%emt 0:00:22] ( -> ...Qc7+)} 60. Kf6 {[%emt 0:00:13]} Qf4+ {[%emt 0:01:20] Black mates.} 61. Nf5 {[%emt 0:00:09]} Nc4 {[%emt 0:00:30]} 62. e7+ {[%emt 0:00:38]} Ke8 {[%emt 0:00:11] Weighted Error Value: White=0.40/Black=0.04 (flawless)} 0-1

[Event "4th ESNA Championship 2022"]
[Site "Vaduz"]
[Date "2022.09.29"]
[Round "7.4"]
[White "Volpinari, Danilo"]
[Black "Berend, Fred"]
[Result "1/2-1/2"]
[ECO "D00"]
[WhiteElo "1929"]
[BlackElo "2300"]
[Annotator "TA"]
[PlyCount "219"]
[EventDate "2022.09.25"]
[EventType "tourn"]
[EventCountry "LIE"]
[SourceTitle "playchess.com"]
[Source "ChessBase"]
[SourceQuality "1"]
[TimeControl "40/5400+30:1800+30"]

{[%evp 9,219,-23,-9,-5,0,-1,2,0,0,0,0,-6,-10,-30,-7,-23,-11,-12,0,-19,0,-28,2,-21,-20,-29,-20,-21,-20,-62,-58,-58,-58,-64,-51,-58,-58,-58,-57,-57,-52,-75,-59,-59,-59,-59,-59,-66,-59,-47,-47,-54,-40,-52,0,-38,0,-21,0,-19,14,-37,-31,-52,-52,-52,-52,-64,-64,-64,-64,-72,-64,-64,-45,-64,-45,-46,-32,-56,-56,-63,-63,-64,-56,-64,-43,-51,-26,-56,-26,-75,-49,-68,-17,-58,-25,-25,-12,-28,-27,-36,-36,-53,-53,-61,0,-41,-24,-45,-16,-31,-29,-27,-25,-23,-10,-29,-10,-43,-10,-10,0,-24,-10,-10,-10,-36,-10,-36,-40,-52,-36,-52,-29,-29,-29,-29,-29,-29,0,-29,0,-29,-25,-29,-29,-29,0,-29,-29,-29,-29,-29,-29,-52,-29,-52,-52,-52,0,-52,-15,-22,-22,-29,-29,-29,0,-15,-15,-15,-15,-15,-15,-15,-15,-15,-15,-15,-15,-15,-15,-15,8,-15,-15,-22,-4,-22,0,-18,0,-4,-4,-38,-14,-14,37,37,37,0,0,0,15,0,0,0,0,-2,0,0]} 1. d4 {[%emt 0:00:18]} Nf6 {[%emt 0:03:33]} 2. Bg5 {[%emt 0:01:14]} d5 {[%emt 0:00:05]} 3. Bxf6 {[%emt 0:00:43]} gxf6 {[%emt 0:00:02]} 4. e3 {[%emt 0:00:35]} c5 {[%emt 0:00:53]} 5. c3 {[%emt 0:03:43]} Qb6 {[%emt 0:01:10]} 6. Qb3 {[%emt 0:04:53] D00: 1 d4 d5: Unusual lines.} e6 {[%emt 0:10:49]} 7. Nd2 {[%emt 0:04:52]} Nc6 {[%emt 0:00:39][%cal Rc5d4]} 8. Ne2 {[%emt 0:02:47]} Bd7 {[%emt 0:03:07] [#]} 9. g3 $146 {[%emt 0:01:55]} ({Predecessor:} 9. Nf4 Bd6 10. Nh5 Ke7 11. Be2 Qxb3 12. axb3 a5 13. dxc5 Bxc5 14. Nf4 Ne5 15. O-O {½-½ (25) Saiyn,Z (2399)-Vorobiov,E (2591) Pardubice 2014}) 9... Na5 {[%emt 0:03:13]} 10. Qxb6 {[%emt 0:15:14]} axb6 {[%emt 0:00:03]} 11. Rc1 {[%emt 0:01:23]} f5 {[%emt 0:02:28]} 12. Nf4 {[%emt 0:02:08]} Bd6 {[%emt 0:00:20]} 13. a3 {[%emt 0:03:30]} Ke7 {[%emt 0:04:08]} 14. Bd3 {[%emt 0:02:12]} Rhc8 {[%emt 0:02:54]} 15. Ke2 {[%emt 0:05:02]} cxd4 {[%emt 0:10:31]} 16. cxd4 {[%emt 0:01:13]} b5 {[%emt 0:00:09][%cal Bb6b5,Bb5c4][%mdl 32]} 17. Rxc8 {[%emt 0:10:55]} Rxc8 {[%emt 0:00:05]} 18. Rb1 {[%emt 0:05:14]} Nc4 {[%emt 0:00:36]} 19. Nxc4 {[%emt 0:11:22]} bxc4 {[%emt 0:00:21]} 20. Bc2 {[%emt 0:00:14]} Ra8 {[%emt 0:00:11]} 21. Kd2 {[%emt 0:01:17]} Bc7 {[%emt 0:05:59]} 22. Ne2 {[%emt 0:00:23]} b5 {[%emt 0:03:54]} 23. Nc3 {[%emt 0:00:45]} Bd6 {[%emt 0:00:36]} 24. Na2 {[%emt 0:01:12]} Be8 {[%emt 0:01:31]} 25. f4 {[%emt 0:00:32]} Kd7 {[%emt 0:00:40]} 26. Kc3 {[%emt 0:00:38]} Kc7 {[%emt 0:02:54]} 27. Nb4 {[%emt 0:00:14]} Bd7 {[%emt 0:00:05]} 28. Rg1 {[%emt 0:01:25]} Rg8 {[%emt 0:01:21]} 29. Bd1 {[%emt 0:00:45]} Rg6 {[%emt 0:01:12]} 30. Rg2 {[%emt 0:01:18]} Rg7 {[%emt 0:03:22]} 31. Bf3 {[%emt 0:00:17]} Bc8 {[%emt 0:01:31]} (31... Be7 $15) 32. Rf2 {[%emt 0:02:16]} Bb7 {[%emt 0:00:43]} 33. Rd2 {[%emt 0:00:23]} Be7 {[%emt 0:00:15]} 34. Rf2 {[%emt 0:00:27]} Kd6 {[%emt 0:00:26]} 35. Rg2 {[%emt 0:01:10]} ({White should try} 35. b3 $11) 35... Bd8 $15 {[%emt 0:00:33]} 36. Rf2 {[%emt 0:00:32]} Ba5 {[%emt 0:00:08]} 37. Bh5 {[%emt 0:01:05]} Bc6 {[%emt 0:00:43]} 38. Bd1 {[%emt 0:01:11]} Be8 {[%emt 0:01:02]} 39. Bh5 {[%emt 0:00:45]} Ke7 {[%emt 0:00:38]} 40. Bf3 {[%emt 0:02:30]} Rg8 {[%emt 0:00:49]} 41. Rg2 {[%emt 0:41:00]} Bd7 {[%emt 0:30:28]} 42. Be2 {[%emt 0:01:21]} Kf6 {[%emt 0:01:14]} 43. Bf3 {[%emt 0:00:27]} Be8 {[%emt 0:02:05]} 44. Be2 {[%emt 0:00:00]} Rg6 {[%emt 0:00:00]} 45. Bf3 {[%emt 0:00:00]} Ke7 {[%emt 0:00:00]} 46. Bd1 {[%emt 0:00:00]} Kf8 {[%emt 0:00:00]} 47. Bf3 {[%emt 0:00:00]} Kg7 {[%emt 0:00:00]} 48. Kc2 {[%emt 0:00:00]} Kh6 {[%emt 0:00:00]} 49. Rf2 {[%emt 0:00:00]} Rg8 {[%emt 0:00:00]} 50. Be2 {[%emt 0:00:00]} (50. Rg2 $1 $11) 50... Bd7 {[%emt 0:00:00]} 51. Bf3 {[%emt 0:00:00]} Ra8 {[%emt 0:00:00]} (51... Kg6 $15) 52. Kc3 {[%emt 0:00:00]} Be8 {[%emt 0:00:00]} 53. Rg2 {[%emt 0:00:00]} Ra7 {[%emt 0:00:00]} 54. Bd1 {[%emt 0:00:00]} f6 {[%emt 0:00:00]} 55. g4 {[%emt 0:00:00] Against Bh5} fxg4 {[%emt 0:00:00]} 56. Rxg4 {[%emt 0:00:00]} Bg6 {[%emt 0:00:00]} 57. Rg3 {[%emt 0:00:00]} Bf5 {[%emt 0:00:00]} ({Better is} 57... Kg7 $15) 58. Be2 {[%emt 0:00:00]} Rg7 {[%emt 0:10:05]} 59. Bf3 {[%emt 0:00:00]} Rg6 {[%emt 0:00:25]} 60. Be2 {[%emt 0:00:00]} Kg7 {[%emt 0:05:24]} 61. Bh5 {[%emt 0:00:00]} Rxg3 {[%emt 0:00:08]} 62. hxg3 $11 {[%emt 0:00:00][%mdl 4096] Endgame KBB-KBN} Kf8 {[%emt 0:00:08] Against Be8} 63. Bf3 {[%emt 0:00:00]} Ke7 {[%emt 0:00:05]} 64. Be2 {[%emt 0:00:00]} Kd6 {[%emt 0:01:00]} 65. Bh5 {[%emt 0:00:00]} Ke7 {[%emt 0:00:16] Prevents Be8.} 66. Kd2 {[%emt 0:00:12]} Be4 {[%emt 0:02:57]} 67. Kc1 {[%emt 0:00:41] [#] Hoping for Nc6+.} Kd7 {[%emt 0:00:19] Inhibits Nc6.} 68. Bg4 {[%emt 0:00:16]} Kd6 {[%emt 0:12:18]} 69. Kd2 {[%emt 0:00:24]} Bg6 {[%emt 0:01:04]} 70. Bf3 {[%emt 0:00:39]} h6 {[%emt 0:00:42]} 71. Kc3 {[%emt 0:00:32]} e5 {[%emt 0:01:24]} 72. Be2 {[%emt 0:00:50]} Bf7 {[%emt 0:01:25]} 73. Bf3 {[%emt 0:00:45]} Bb6 {[%emt 0:00:34]} 74. Be2 {[%emt 0:00:14]} Bd8 {[%emt 0:01:31]} 75. Kd2 {[%emt 0:00:17]} h5 {[%emt 0:00:24]} 76. Bf3 {[%emt 0:00:49]} Bb6 {[%emt 0:00:44]} 77. Kc3 {[%emt 0:00:18]} Ba5 {[%emt 0:00:28]} 78. Kd2 {[%emt 0:00:51]} Bg6 {[%emt 0:00:27]} 79. Ke2 {[%emt 0:01:26]} e4 {[%emt 0:00:12]} 80. Bg2 {[%emt 0:00:32]} Bf5 {[%emt 0:00:01]} 81. Kf2 {[%emt 0:02:02]} Bd8 {[%emt 0:01:13]} 82. Kg1 {[%emt 0:00:20]} Bg4 {[%emt 0:01:51]} 83. Kh2 {[%emt 0:00:48]} Be6 {[%emt 0:01:52]} 84. Bf1 {[%emt 0:00:35]} Bg4 {[%emt 0:01:31]} 85. Bg2 {[%emt 0:00:09]} f5 {[%emt 0:01:59]} 86. Bf1 {[%emt 0:00:29]} Ke6 {[%emt 0:00:38]} 87. Bg2 {[%emt 0:00:35]} Bd1 {[%emt 0:00:23]} 88. Bh3 {[%emt 0:01:06]} h4 {[%emt 0:00:31]} 89. Bf1 {[%emt 0:00:47]} Be7 {[%emt 0:00:45]} 90. Bh3 {[%emt 0:00:16]} Bh5 {[%emt 0:00:48]} 91. Bf1 {[%emt 0:00:22]} Kd6 {[%emt 0:00:23]} 92. Bh3 {[%emt 0:00:15]} hxg3+ {[%emt 0:00:02]} 93. Kxg3 {[%emt 0:00:17]} Bg6 {[%emt 0:00:02]} 94. Bf1 {[%emt 0:00:28]} Bf7 {[%emt 0:00:03]} 95. Be2 {[%emt 0:00:20]} Kc7 {[%emt 0:00:12]} 96. Bd1 {[%emt 0:01:56]} Bf6 {[%emt 0:00:31]} 97. Kf2 {[%emt 0:03:33]} (97. Bh5 $5 {[%cal Rh5f7]} Be6 98. Be8 $11) 97... Bh4+ {[%emt 0:00:10]} 98. Ke2 {[%emt 0:00:15]} Kd6 {[%emt 0:01:11]} 99. Kf1 {[%emt 0:01:12]} Bg3 {[%emt 0:00:32]} 100. Ke2 {[%emt 0:00:43]} Bh5+ {[%emt 0:02:26]} 101. Kd2 {[%emt 0:00:01]} Bg6 {[%emt 0:00:24]} 102. Be2 {[%emt 0:00:11]} Bf7 {[%emt 0:00:53]} 103. Bd1 {[%emt 0:00:08]} Be6 {[%emt 0:00:18]} ({Black should play} 103... Be8 $11) 104. Bh5 $14 {[%emt 0:00:18]} Ke7 {[%emt 0:01:25] Prevents Be8.} 105. Nc6+ {[%emt 0:00:22]} Kf8 {[%emt 0:00:58] The position is equal.} 106. Nb4 {[%emt 0:01:12]} Bh4 {[%emt 0:00:11]} 107. Na6 {[%emt 0:00:43]} Bd8 $1 {[%emt 0:00:32] Against Nc7} 108. Nb4 {[%emt 0:00:27]} Ba5 {[%emt 0:00:37]} 109. Kc2 {[%emt 0:00:37]} Bd8 {[%emt 0:00:39]} 110. Nc6 {[%emt 0:00:19] Weighted Error Value: White=0.12 (very precise) /Black=0.13 (very precise)} 1/2-1/2

[Event "4th ESNA Championship 2022"]
[Site "Vaduz"]
[Date "2022.09.29"]
[Round "7.5"]
[White "Apol, Luitjen Akselsson"]
[Black "Frick, Renato"]
[Result "1-0"]
[ECO "B37"]
[WhiteElo "2113"]
[BlackElo "1875"]
[Annotator "TA"]
[PlyCount "93"]
[EventDate "2022.09.25"]
[EventType "tourn"]
[EventCountry "LIE"]
[SourceTitle "playchess.com"]
[Source "ChessBase"]
[SourceQuality "1"]
[TimeControl "40/5400+30:1800+30"]

{[%evp 15,93,-7,35,24,29,29,41,20,63,0,0,0,50,29,31,35,82,88,88,88,89,80,87,88,231,227,208,175,178,152,162,162,151,152,206,100,102,91,96,91,114,107,117,115,115,117,122,109,108,110,113,112,129,117,118,125,119,128,132,131,127,127,132,120,265,265,265,265,249,235,370,377,357,315,29985,29986,29988,29989,29997,29998]} 1. e4 {[%emt 0:00:09]} c5 {[%emt 0:00:07]} 2. Nf3 {[%emt 0:00:17][%cal Bg1f3,Bf3d4,Bd4c2,Bc2a3][%mdl 32]} g6 {[%emt 0:00:15]} 3. d4 {[%emt 0:01:23]} cxd4 {[%emt 0:00:07]} 4. Nxd4 {[%emt 0:00:37]} Nc6 {[%emt 0:00:08]} 5. c4 {[%emt 0:00:21]} Bg7 {[%emt 0:00:07]} 6. Nc2 {[%emt 0:00:06]} Nf6 {[%emt 0:00:51]} 7. Nc3 {[%emt 0:00:17]} d6 {[%emt 0:00:37]} 8. Be2 {[%emt 0:00:23]} Be6 {[%emt 0:01:49]} (8... Nd7 $5 {[%cal Rd7c5]}) 9. Be3 {[%emt 0:03:25] B37: Sicilian: Maroczy Bind with 5...Bg7, sidelines.} Qa5 {[%emt 0:06:14] [#] White must now prevent ...Nxe4.} 10. O-O $146 {[%emt 0:21:17]} ({Predecessor:} 10. Qd2 Ng4 11. Bxg4 Bxg4 12. Nd4 Rc8 13. O-O O-O 14. Rac1 Nxd4 15. Bxd4 Rxc4 16. Bxg7 Kxg7 {0-1 (37) Shalamberidze,A (2330)-Zapletal,J (2210) Pardubice 1993}) 10... Ne5 {[%emt 0:18:12]} 11. Na3 {[%emt 0:13:35] White is slightly better.} O-O {[%emt 0:14:03]} 12. f3 {[%emt 0:01:34]} (12. f4 $1 $14 Nc6 13. Nc2) 12... Rfc8 $11 {[%emt 0:05:10][%cal Re5c4]} 13. Nd5 {[%emt 0:03:32]} Nc6 {[%emt 0:10:56]} (13... Nxd5 $11 14. cxd5 Bd7) 14. Nb5 {[%emt 0:18:48]} Nd7 {[%emt 0:15:44]} 15. Nbc3 {[%emt 0:03:44]} Bxc3 {[%emt 0:09:13]} (15... Nb6 $14 {is more appropriate.}) 16. Nxc3 $16 {[%emt 0:03:22]} Nce5 {[%emt 0:05:14]} 17. Nd5 {[%emt 0:00:17]} Bxd5 {[%emt 0:00:16]} 18. cxd5 {[%emt 0:00:40]} Nc4 {[%emt 0:00:33]} 19. Bd4 {[%emt 0:05:05]} e5 {[%emt 0:01:07]} (19... Qb4 $16) 20. dxe6 $1 $18 {[%emt 0:04:27]} fxe6 {[%emt 0:00:11]} 21. b3 {[%emt 0:06:04]} Ncb6 {[%emt 0:04:53]} 22. Kh1 {[%emt 0:03:00]} d5 {[%emt 0:01:13]} 23. exd5 {[%emt 0:03:13]} Qxd5 {[%emt 0:02:16]} 24. f4 {[%emt 0:01:49] Inhibits Ne5. Strongly threatening Bf3.} e5 {[%emt 0:01:42] [#]} (24... Rf8 $16 25. Bf3 Qd6) 25. Bxb6 {[%emt 0:03:59] A strong pair of Bishops.} (25. Bg1 $1 $18) 25... Qxd1 $16 {[%emt 0:00:18]} 26. Raxd1 {[%emt 0:01:01]} Nxb6 {[%emt 0:00:14]} 27. fxe5 {[%emt 0:00:11]} Re8 {[%emt 0:00:17]} 28. Bf3 {[%emt 0:00:12] White is more active.} Rxe5 {[%emt 0:00:12]} 29. Bxb7 {[%emt 0:00:03]} Rf8 {[%emt 0:00:33]} 30. Bf3 {[%emt 0:00:51]} Rc8 {[%emt 0:00:28]} 31. Rd2 {[%emt 0:00:51]} Kg7 {[%emt 0:00:21]} 32. h3 {[%emt 0:00:37]} Rc7 {[%emt 0:00:14]} 33. Kh2 {[%emt 0:00:51]} Rce7 {[%emt 0:01:42]} 34. Rc2 {[%emt 0:00:48]} Nd5 {[%emt 0:00:56]} 35. Rfc1 {[%emt 0:00:27] Rc5 is the strong threat.} Nb4 {[%emt 0:00:34]} 36. Rd2 {[%emt 0:00:33]} Na6 {[%emt 0:00:36]} 37. Rc8 {[%emt 0:00:34]} Nc5 {[%emt 0:00:16]} 38. Ra8 {[%emt 0:00:30]} Ne6 {[%emt 0:00:32]} 39. Rd6 {[%emt 0:00:28]} Ng5 {[%emt 0:00:27] [#]} (39... Re3 $16 40. Bd5 Nc7) 40. Ra6 $1 $18 {[%emt 0:00:26]} Nxf3+ {[%emt 0:00:30]} 41. gxf3 {[%emt 0:30:01][%mdl 4096] Endgame KRR-KRR} Re2+ {[%emt 0:04:20]} 42. Kg3 {[%emt 0:00:00]} R7e5 {[%emt 0:00:07]} (42... Rb7 {was worth a try.} 43. R6xa7 Ree7 44. Rxb7 Rxb7) 43. R8xa7+ {[%emt 0:00:00]} Kh6 {[%emt 0:00:09]} 44. Ra5 {[%emt 0:00:00]} Rg2+ $2 {[%emt 0:00:18]} (44... Rxa5 $18 45. Rxa5 Rb2) 45. Kxg2 {[%emt 0:00:00] White mates.} Re2+ {[%emt 0:00:08]} 46. Kg3 {[%emt 0:00:00]} Rg2+ {[%emt 0:00:04]} 47. Kxg2 {[%emt 0:00:00] Weighted Error Value: White=0.13 (very precise) /Black=0.37} 1-0

[Event "4th ESNA Championship 2022"]
[Site "Vaduz"]
[Date "2022.09.30"]
[Round "8.1"]
[White "Mizzi, Jack"]
[Black "Frick, Renato"]
[Result "1-0"]
[ECO "E00"]
[WhiteElo "1863"]
[BlackElo "1875"]
[Annotator "NA RC COMBH"]
[PlyCount "119"]
[EventDate "2022.09.25"]
[EventType "tourn"]
[EventCountry "LIE"]
[SourceTitle "playchess.com"]
[Source "ChessBase"]
[SourceQuality "1"]
[TimeControl "40/5400+30:1800+30"]

1. d4 {[%emt 0:00:04]} Nf6 {[%emt 0:00:08]} 2. c4 {[%emt 0:00:07]} e6 {[%emt 0:00:14]} 3. g3 {[%emt 0:00:09]} Bb4+ {[%emt 0:00:28]} 4. Nd2 {[%emt 0:00:22]} c6 {[%emt 0:00:58]} 5. Bg2 {[%emt 0:01:03]} d5 {[%emt 0:00:06]} 6. Qc2 {[%emt 0:02:56]} O-O {[%emt 0:06:21]} 7. Ngf3 {[%emt 0:01:49]} Ne4 {[%emt 0:05:37]} 8. O-O {[%emt 0:05:43]} Nxd2 {[%emt 0:03:21]} 9. Bxd2 {[%emt 0:00:52]} Bxd2 {[%emt 0:00:50]} 10. Qxd2 {[%emt 0:01:51]} Nd7 {[%emt 0:00:35]} 11. Rac1 {[%emt 0:04:44]} Qe7 {[%emt 0:09:13]} 12. Rfd1 {[%emt 0:11:09]} b6 {[%emt 0:12:26]} 13. cxd5 {[%emt 0:08:22]} cxd5 {[%emt 0:01:21]} 14. Rc7 {[%emt 0:16:26]} Qd6 {[%emt 0:00:09]} 15. Rdc1 {[%emt 0:03:31]} Rd8 {[%emt 0:08:30]} 16. R1c6 {[%emt 0:12:36]} Qf8 {[%emt 0:01:27]} 17. Qc2 {[%emt 0:03:53]} h6 {[%emt 0:09:37]} 18. h4 {[%emt 0:04:07]} Nf6 {[%emt 0:16:00]} 19. Ne5 {[%emt 0:01:21]} Bd7 {[%emt 0:00:15]} 20. Rc3 {[%emt 0:01:15]} Qd6 {[%emt 0:03:53]} 21. Bf3 {[%emt 0:05:44]} Be8 {[%emt 0:07:35]} 22. e3 {[%emt 0:02:45]} a5 {[%emt 0:02:45]} 23. Rb7 {[%emt 0:03:12]} Rab8 {[%emt 0:03:38]} 24. Ra7 {[%emt 0:01:52]} Ra8 {[%emt 0:03:23]} 25. Rxa8 {[%emt 0:02:52]} Rxa8 {[%emt 0:00:02]} 26. Rc8 {[%emt 0:00:23]} Rxc8 {[%emt 0:01:14]} 27. Qxc8 {[%emt 0:00:07]} Kf8 {[%emt 0:00:58]} 28. a3 {[%emt 0:03:52]} g6 {[%emt 0:01:33]} 29. g4 {[%emt 0:00:42]} Nd7 {[%emt 0:00:44]} 30. Qd8 {[%emt 0:00:35]} Qe7 {[%emt 0:00:49]} 31. Nxd7+ {[%emt 0:00:12]} Qxd7 {[%emt 0:00:02]} 32. Qxb6 {[%emt 0:00:09]} Qe7 {[%emt 0:01:05]} 33. Qxa5 {[%emt 0:00:47]} Qxh4 {[%emt 0:00:17]} 34. Qc5+ {[%emt 0:00:29]} Kg7 {[%emt 0:00:16]} 35. Qd6 {[%emt 0:00:57]} Bb5 {[%emt 0:00:40]} 36. Kg2 {[%emt 0:00:53]} Bd3 {[%emt 0:01:09]} 37. Qf4 {[%emt 0:00:18]} Qd8 {[%emt 0:00:21]} 38. Qe5+ {[%emt 0:00:29]} Kg8 {[%emt 0:00:24]} 39. e4 {[%emt 0:00:17]} Bc4 {[%emt 0:00:47]} 40. exd5 {[%emt 0:00:17]} exd5 {[%emt 0:00:06]} 41. Qe3 {[%emt 0:30:51]} Qb8 {[%emt 0:07:31]} 42. b4 {[%emt 0:00:00]} Qa8 {[%emt 0:02:46]} 43. Bd1 {[%emt 0:00:00]} Bb5 {[%emt 0:07:27]} 44. Qb3 {[%emt 0:00:00]} Qe8 {[%emt 0:01:33]} 45. a4 {[%emt 0:00:00]} Be2 {[%emt 0:02:38]} 46. b5 {[%emt 0:00:00]} Bc4 {[%emt 0:07:27]} 47. Qc3 {[%emt 0:00:00]} Qd8 {[%emt 0:02:07]} 48. Bf3 {[%emt 0:00:00]} Kg7 {[%emt 0:00:58]} 49. Qb4 {[%emt 0:00:53]} Qf6 {[%emt 0:00:31]} 50. Qc3 {[%emt 0:00:49]} h5 {[%emt 0:00:57]} 51. Qe3 {[%emt 0:00:48]} hxg4 {[%emt 0:00:30]} 52. Bxg4 {[%emt 0:00:08]} Qd8 {[%emt 0:01:46]} 53. Qd2 {[%emt 0:00:32]} f5 {[%emt 0:00:14]} 54. Bd1 {[%emt 0:01:05]} Qh4 {[%emt 0:00:19]} 55. Qe3 {[%emt 0:01:13]} f4 {[%emt 0:00:06]} 56. Qe5+ {[%emt 0:00:47]} Kh7 {[%emt 0:00:16]} 57. Bf3 {[%emt 0:00:34]} Bb3 {[%emt 0:00:41]} 58. b6 {[%emt 0:00:19]} Bxa4 {[%emt 0:01:29]} 59. b7 {[%emt 0:00:23]} Bd7 {[%emt 0:00:47]} 60. b8=Q {[%emt 0:00:35]} 1-0